fUST/lending_fUST_20250608
["ID","MTS","AMOUNT","RATE_DAILY","PERIOD"]
[364970198,1749367834293,-783.15,0.00019178,2]
[364970199,1749367834303,-783.15,0.00019178,2]
[364970200,1749367834313,-783.15,0.00019178,2]
[364970201,1749367834322,-783.15,0.00019178,2]
[364970202,1749367834332,-783.15,0.00019178,2]
[364970203,1749367834342,-783.15,0.00019178,2]
[364970204,1749367834353,-783.15,0.00019178,2]
[364970205,1749367834362,-783.15,0.00019178,2]
[364970206,1749367834371,-430.0,0.00019178,2]
[364970207,1749367834381,-440.0,0.00019178,2]
[364970208,1749367834390,-440.0,0.00019178,2]
[364970209,1749367834400,-440.0,0.00019178,2]
[364970210,1749367834409,-440.0,0.00019178,2]
[364970211,1749367834420,-440.0,0.00019178,2]
[364970212,1749367834430,-440.0,0.00019178,2]
[364970213,1749367834440,-400.0,0.00019178,2]
[364970214,1749367834450,-519.1778053,0.00019178,2]
[364970215,1749367834460,-406.0162744,0.00019178,2]
[364970216,1749367834470,-440.0,0.00019178,2]
[364970217,1749367834481,-440.0,0.00019178,2]
[364970218,1749367834491,-440.0,0.00019178,2]
[364970219,1749367834503,-440.0,0.00019178,2]
[364970220,1749367834514,-440.0,0.00019178,2]
[364970221,1749367834525,-400.0,0.00019178,2]
[364970222,1749367834535,-440.0,0.00019178,2]
[364970223,1749367834545,-430.0,0.00019178,2]
[364970224,1749367834555,-413.13405275,0.00019178,2]
[364970225,1749367834564,-300.0,0.00019178,2]
[364970226,1749367834574,-440.0,0.00019178,2]
[364970227,1749367834583,-402.00983343,0.00019178,2]
[364970228,1749367834593,-405.51258393,0.00019178,2]
[364970229,1749367834603,-440.0,0.00019178,2]
[364970230,1749367834612,-440.0,0.00019178,2]
[364970231,1749367834622,-440.0,0.00019178,2]
[364970232,1749367834631,-151.0,0.00019178,2]
[364970233,1749367834641,-156.278625,0.00019178,2]
[364970234,1749367834650,-430.0,0.00019178,2]
[364970235,1749367834661,-431.30095445,0.00019178,2]
[364970236,1749367834670,-534.10705261,0.00019178,2]
[364970237,1749367834680,-440.0,0.00019178,2]
[364970238,1749367834689,-409.93390703,0.00019178,2]
[364970239,1749367834699,-450.0,0.00019178,2]
[364970240,1749367834708,-440.0,0.00019178,2]
[364970241,1749367834718,-205.53367335,0.00019178,2]
[364970242,1749367834727,-440.0,0.00019178,2]
[364970243,1749367834737,-440.0,0.00019178,2]
[364970244,1749367834747,-440.0,0.00019178,2]
[364970245,1749367834756,-451.57756083,0.00019178,2]
[364970246,1749367834766,-440.0,0.00019178,2]
[364970247,1749367834777,-440.0,0.00019178,2]
[364970248,1749367834787,-358.39172033,0.00019178,2]
[364970249,1749367834796,-414.63557441,0.00019178,2]
[364970250,1749367834806,-481.96345513,0.00019178,2]
[364970251,1749367834816,-370.0,0.00019178,2]
[364970252,1749367834825,-332.85571673,0.00019178,2]
[364970253,1749367834834,-440.0,0.00019178,2]
[364970254,1749367834845,-151.0,0.00019178,2]
[364970255,1749367834854,-151.0,0.00019178,2]
[364970256,1749367834864,-440.0,0.00019178,2]
[364970257,1749367834873,-430.0,0.00019178,2]
[364970258,1749367834885,-440.0,0.00019178,2]
[364970259,1749367834896,-370.0,0.00019178,2]
[364970260,1749367834905,-419.00116581,0.00019178,2]
[364970261,1749367834914,-440.0,0.00019178,2]
[364970262,1749367834923,-440.0,0.00019178,2]
[364970263,1749367834933,-440.0,0.00019178,2]
[364970264,1749367834943,-440.0,0.00019178,2]
[364970265,1749367834953,-440.0,0.00019178,2]
[364970266,1749367834963,-440.0,0.00019178,2]
[364970267,1749367834973,-440.0,0.00019178,2]
[364970268,1749367834983,-440.0,0.00019178,2]
[364970269,1749367834994,-440.0,0.00019178,2]
[364970270,1749367835004,-440.0,0.00019178,2]
[364970271,1749367835015,-440.0,0.00019178,2]
[364970272,1749367835026,-452.87921709,0.00019178,2]
[364970273,1749367835036,-440.0,0.00019178,2]
[364970274,1749367835045,-440.0,0.00019178,2]
[364970275,1749367835055,-440.0,0.00019178,2]
[364970276,1749367835065,-430.0,0.00019178,2]
[364970277,1749367835075,-351.22284102,0.00019178,2]
[364970278,1749367835085,-440.0,0.00019178,2]
[364970279,1749367835094,-440.0,0.00019178,2]
[364970280,1749367835105,-440.0,0.00019178,2]
[364970281,1749367835115,-440.0,0.00019178,2]
[364970282,1749367835124,-440.0,0.00019178,2]
[364970283,1749367835134,-440.0,0.00019178,2]
[364970284,1749367835144,-440.0,0.00019178,2]
[364970285,1749367835153,-297.75408464,0.00019178,2]
[364970286,1749367835163,-440.0,0.00019178,2]
[364970287,1749367835172,-440.0,0.00019178,2]
[364970288,1749367835181,-440.0,0.00019178,2]
[364970289,1749367835191,-405.20408935,0.00019178,2]
[364970290,1749367835200,-423.78815854,0.00019178,2]
[364970291,1749367835210,-440.0,0.00019178,2]
[364970292,1749367835220,-440.0,0.00019178,2]
[364970293,1749367835230,-440.0,0.00019178,2]
[364970294,1749367835240,-453.74929096,0.00019178,2]
[364970295,1749367835251,-440.0,0.00019178,2]
[364970296,1749367835262,-440.0,0.00019178,2]
[364970297,1749367835273,-223.49018546,0.00019178,2]
[364970298,1749367835283,-440.0,0.00019178,2]
[364970299,1749367835294,-440.0,0.00019178,2]
[364970300,1749367835304,-514.51387988,0.00019178,2]
[364970301,1749367835315,-440.0,0.00019178,2]
[364970302,1749367835326,-440.0,0.00019178,2]
[364970303,1749367835337,-440.0,0.00019178,2]
[364970304,1749367835347,-440.0,0.00019178,2]
[364970305,1749367835356,-183.321715,0.00019178,2]
[364970306,1749367835366,-183.321715,0.00019178,2]
[364970307,1749367835375,-440.0,0.00019178,2]
[364970308,1749367835385,-183.321715,0.00019178,2]
[364970309,1749367835396,-440.0,0.00019178,2]
[364970310,1749367835406,-440.0,0.00019178,2]
[364970311,1749367835416,-183.321715,0.00019178,2]
[364970312,1749367835427,-440.0,0.00019178,2]
[364970313,1749367835437,-440.0,0.00019178,2]
[364970314,1749367835448,-549.21609173,0.00019178,2]
[364970315,1749367835458,-440.0,0.00019178,2]
[364970316,1749367835468,-440.0,0.00019178,2]
[364970317,1749367835479,-312.42936226,0.00019178,2]
[364970318,1749367835489,-440.0,0.00019178,2]
[364970319,1749367835498,-440.0,0.00019178,2]
[364970320,1749367835508,-440.0,0.00019178,2]
[364970321,1749367835518,-440.0,0.00019178,2]
[364970322,1749367835529,-430.0,0.00019178,2]
[364970323,1749367835539,-440.0,0.00019178,2]
[364970324,1749367835550,-440.0,0.00019178,2]
[364970325,1749367835560,-440.0,0.00019178,2]
[364970326,1749367835570,-440.0,0.00019178,2]
[364970327,1749367835580,-440.0,0.00019178,2]
[364970328,1749367835590,-435.98423619,0.00019178,2]
[364970329,1749367835600,-440.0,0.00019178,2]
[364970330,1749367835611,-410.00131723,0.00019178,2]
[364970331,1749367835620,-440.0,0.00019178,2]
[364970332,1749367835630,-442.48623561,0.00019178,2]
[364970333,1749367835640,-434.61457482,0.00019178,2]
[364970334,1749367835650,-440.0,0.00019178,2]
[364970335,1749367835659,-440.0,0.00019178,2]
[364970336,1749367835669,-440.0,0.00019178,2]
[364970337,1749367835679,-567.8038872,0.00019178,2]
[364970338,1749367835688,-440.0,0.00019178,2]
[364970339,1749367835699,-430.0,0.00019178,2]
[364970340,1749367835708,-312.39432594,0.00019178,2]
[364970341,1749367835718,-440.0,0.00019178,2]
[364970342,1749367835728,-404.45371172,0.00019178,2]
[364970343,1749367835738,-440.0,0.00019178,2]
[364970344,1749367835748,-151.0,0.00019178,2]
[364970345,1749367835757,-151.0,0.00019178,2]
[364970346,1749367835769,-151.0,0.00019178,2]
[364970347,1749367835779,-440.0,0.00019178,2]
[364970348,1749367835789,-430.0,0.00019178,2]
[364970349,1749367835800,-436.56945006,0.00019178,2]
[364970350,1749367835809,-430.0,0.00019178,2]
[364970351,1749367835819,-151.0,0.00019178,2]
[364970352,1749367835829,-155.314599,0.00019178,2]
[364970353,1749367835839,-569.21817442,0.00019178,2]
[364970354,1749367835849,-430.0,0.00019178,2]
[364970355,1749367835859,-440.0,0.00019178,2]
[364970356,1749367835868,-440.0,0.00019178,2]
[364970357,1749367835878,-435.41578865,0.00019178,2]
[364970358,1749367835888,-370.0,0.00019178,2]
[364970359,1749367835898,-381.3254746,0.00019178,2]
[364970360,1749367835908,-440.0,0.00019178,2]
[364970361,1749367835919,-445.19873525,0.00019178,2]
[364970362,1749367835929,-445.461469,0.00019178,2]
[364970363,1749367835939,-440.3314668,0.00019178,2]
[364970364,1749367835948,-430.0,0.00019178,2]
[364970365,1749367835960,-431.07505449,0.00019178,2]
[364970366,1749367835970,-440.0,0.00019178,2]
[364970367,1749367835980,-400.0,0.00019178,2]
[364970368,1749367835990,-369.80979727,0.00019178,2]
[364970369,1749367836000,-491.59507264,0.00019178,2]
[364970370,1749367836010,-440.0,0.00019178,2]
[364970371,1749367836021,-440.0,0.00019178,2]
[364970372,1749367836030,-440.0,0.00019178,2]
[364970373,1749367836040,-500.0,0.00019178,2]
[364970374,1749367836051,-443.89302809,0.00019178,2]
[364970375,1749367836060,-426.80223193,0.00019178,2]
[364970376,1749367836071,-440.0,0.00019178,2]
[364970377,1749367836082,-440.0,0.00019178,2]
[364970378,1749367836093,-234.00821005,0.00019178,2]
[364970379,1749367836103,-441.95,0.00019178,2]
[364970380,1749367836112,-428.3957739,0.00019178,2]
[364970381,1749367836237,-11.6042261,0.00019178,2]
[364970382,1749367836248,-405.27160876,0.00019178,2]
[364970383,1749367836260,-435.39868368,0.00019178,2]
[364970384,1749367836271,-408.09389821,0.00019178,2]
[364970385,1749367836283,-974.34,0.00019178,2]
[364970386,1749367836293,-500.0,0.00019178,2]
[364970387,1749367836304,-440.0,0.00019178,2]
[364970388,1749367836315,-440.0,0.00019178,2]
[364970389,1749367836325,-151.0,0.00019178,2]
[364970390,1749367836335,-151.0,0.00019178,2]
[364970391,1749367836344,-440.0,0.00019178,2]
[364970392,1749367836354,-151.0,0.00019178,2]
[364970393,1749367836364,-440.0,0.00019178,2]
[364970394,1749367836375,-440.0,0.00019178,2]
[364970395,1749367836387,-440.0,0.00019178,2]
[364970396,1749367836397,-312.575646,0.00019178,2]
[364970397,1749367836407,-440.0,0.00019178,2]
[364970398,1749367836417,-430.0,0.00019178,2]
[364970399,1749367836427,-440.0,0.00019178,2]
[364970400,1749367836543,-440.0,0.00019178,2]
[364970401,1749367836556,-500.0,0.00019178,2]
[364970402,1749367836566,-440.0,0.00019178,2]
[364970403,1749367836577,-440.0,0.00019178,2]
[364970404,1749367836587,-440.0,0.00019178,2]
[364970405,1749367836599,-440.0,0.00019178,2]
[364970406,1749367836610,-440.0,0.00019178,2]
[364970407,1749367836620,-440.0,0.00019178,2]
[364970408,1749367836630,-448.41591678,0.00019178,2]
[364970409,1749367836640,-440.0,0.00019178,2]
[364970410,1749367836650,-440.0,0.00019178,2]
[364970411,1749367836659,-151.491359,0.00019178,2]
[364970412,1749367836669,-553.23,0.00019178,2]
[364970413,1749367836680,-440.0,0.00019178,2]
[364970414,1749367836692,-440.0,0.00019178,2]
[364970415,1749367836702,-537.75,0.00019178,2]
[364970416,1749367836712,-275.63735612,0.00019178,2]
[364970417,1749367836722,-500.0,0.00019178,2]
[364970418,1749367836732,-323.55673185,0.00019178,2]
[364970419,1749367836742,-151.0,0.00019178,2]
[364970420,1749367836752,-151.0,0.00019178,2]
[364970421,1749367836762,-279.841274,0.00019178,2]
[364970422,1749367836776,-440.0,0.00019178,2]
[364970423,1749367836785,-440.0,0.00019178,2]
[364970424,1749367836795,-440.0,0.00019178,2]
[364970425,1749367836805,-440.0,0.00019178,2]
[364970426,1749367836816,-440.0,0.00019178,2]
[364970427,1749367836826,-440.0,0.00019178,2]
[364970428,1749367836836,-440.0,0.00019178,2]
[364970429,1749367836846,-440.0,0.00019178,2]
[364970430,1749367836856,-440.0,0.00019178,2]
[364970431,1749367836866,-440.0,0.00019178,2]
[364970432,1749367836877,-440.0,0.00019178,2]
[364970433,1749367836887,-440.0,0.00019178,2]
[364970434,1749367836897,-440.0,0.00019178,2]
[364970435,1749367836907,-440.0,0.00019178,2]
[364970436,1749367836916,-440.0,0.00019178,2]
[364970437,1749367836926,-440.0,0.00019178,2]
[364970438,1749367836936,-500.77518585,0.00019178,2]
[364970439,1749367836946,-440.0,0.00019178,2]
[364970440,1749367836956,-472.60810396,0.00019178,2]
[364970441,1749367836965,-440.0,0.00019178,2]
[364970442,1749367836975,-151.0,0.00019178,2]
[364970443,1749367836985,-151.0,0.00019178,2]
[364970444,1749367836998,-151.0,0.00019178,2]
[364970445,1749367837007,-350.0,0.00019178,2]
[364970446,1749367837017,-440.0,0.00019178,2]
[364970447,1749367837027,-440.0,0.00019178,2]
[364970448,1749367837037,-440.0,0.00019178,2]
[364970449,1749367837047,-440.0,0.00019178,2]
[364970450,1749367837056,-403.07948718,0.00019178,2]
[364970451,1749367837066,-450.0,0.00019178,2]
[364970452,1749367837075,-560.73,0.00019178,2]
[364970453,1749367837084,-440.0,0.00019178,2]
[364970454,1749367837095,-454.70987108,0.00019178,2]
[364970455,1749367837104,-440.0,0.00019178,2]
[364970456,1749367837114,-430.0,0.00019178,2]
[364970457,1749367837124,-440.0,0.00019178,2]
[364970458,1749367837134,-440.0,0.00019178,2]
[364970459,1749367837143,-440.0,0.00019178,2]
[364970460,1749367837152,-151.0,0.00019178,2]
[364970461,1749367837162,-151.0,0.00019178,2]
[364970462,1749367837172,-151.0,0.00019178,2]
[364970463,1749367837182,-440.0,0.00019178,2]
[364970464,1749367837192,-151.0,0.00019178,2]
[364970465,1749367837201,-241.685088,0.00019178,2]
[364970466,1749367837210,-440.0,0.00019178,2]
[364970467,1749367837220,-440.0,0.00019178,2]
[364970468,1749367837230,-514.19028229,0.00019178,2]
[364970469,1749367837239,-928.28,0.00019178,2]
[364970470,1749367837249,-928.28,0.00019178,2]
[364970471,1749367837259,-928.28,0.00019178,2]
[364970472,1749367837268,-928.28,0.00019178,2]
[364970473,1749367837278,-928.28,0.00019178,2]
[364970474,1749367837288,-928.28,0.00019178,2]
[364970475,1749367837297,-928.28,0.00019178,2]
[364970476,1749367837307,-499.81517324,0.00019178,2]
[364970477,1749367837321,-428.46482676,0.00019178,2]
[364970478,1749367837330,-871.26795543,0.00019178,2]
[364970479,1749367837342,-57.01204457,0.00019178,2]
[364970480,1749367837351,-440.0,0.00019178,2]
[364970481,1749367837360,-830.34064116,0.00019178,2]
[364970497,1749367846499,-5000.0,0.00018986,2]
[364970498,1749367846509,-97.93935884,0.00019178,2]
[364970499,1749367846519,-928.28,0.00019178,2]
[364970501,1749367846529,-928.28,0.00019178,2]
[364970502,1749367846538,-928.28,0.00019178,2]
[364970503,1749367846548,-440.0,0.00019178,2]
[364970504,1749367846558,-440.0,0.00019178,2]
[364970505,1749367846567,-440.0,0.00019178,2]
[364970506,1749367846576,-458.59036024,0.00019178,2]
[364970507,1749367846587,-221.5857828,0.00019178,2]
[364970508,1749367846599,-749.74,0.00019178,2]
[364970509,1749367846609,-440.0,0.00019178,2]
[364970510,1749367846618,-430.0,0.00019178,2]
[364970511,1749367846627,-430.0,0.00019178,2]
[364970512,1749367846638,-400.0,0.00019178,2]
[364970513,1749367846648,-440.0,0.00019178,2]
[364970514,1749367846657,-440.0,0.00019178,2]
[364970515,1749367846669,-440.0,0.00019178,2]
[364970516,1749367846679,-841.36858466,0.00019178,2]
[364970520,1749367909895,249.840358,0.00013699,2]
[364970530,1749367975513,150.0,0.00024644,30]
[364970534,1749368035653,1000.0,0.00025479,120]
[364970541,1749368829129,-891.0242548,0.00016791,2]
[364970542,1749368838097,-1294.88614056,0.00016791,2]
[364970543,1749368842110,-593.77417834,0.00016791,2]
[364970546,1749368959127,-2220.3154263,0.00016791,2]
[364970547,1749368959149,-6345.57333494,0.00017475,2]
[364970569,1749369032458,-371.7360852,0.000173,2]
[364970593,1749369038426,-65.97490871,0.000173,2]
[364970594,1749369038438,-2514.22349169,0.000173,2]
[364970616,1749369046487,-2048.0655144,0.000173,2]
[364970617,1749369046497,-180.68771046,0.00017475,2]
[364970618,1749369046507,-388.46,0.00017657,2]
[364970619,1749369046517,-176.8076773,0.00017681,2]
[364970620,1749369046527,-163.1,0.00018072,2]
[364970621,1749369046537,-210.21544625,0.00018081,2]
[364970622,1749369046547,-300.0,0.00018081,2]
[364970623,1749369046557,-3379.62918996,0.00018082,2]
[364970624,1749369046586,237.34834,0.00013699,2]
[364970648,1749369604707,2311.95038321,0.00016,2]
[364970652,1749369632288,200.0,0.00024033,120]
[364970671,1749370026655,-286.82126477,0.00016274,2]
[364970672,1749370039120,-2307.04854332,0.00016274,2]
[364970674,1749370097556,225.480923,0.00013699,2]
[364970677,1749370151092,-2406.13019191,0.00016274,2]
[364970678,1749370151120,-171.0,0.00016438,3]
[364970679,1749370171125,-5000.0,0.00016969,2]
[364970680,1749370171148,-55.70441372,0.00017141,2]
[364970692,1749370232872,-1427.89191307,0.00016969,2]
[364970700,1749370238638,-3572.10808693,0.00016969,2]
[364970701,1749370238652,-110.14939568,0.00017141,2]
[364970703,1749370238662,-1145.0,0.00017778,2]
[364970705,1749370238672,-242.829,0.00017779,2]
[364970706,1749370238682,-300.0,0.00017779,2]
[364970707,1749370238692,-300.0,0.00017779,2]
[364970708,1749370238702,-24900.0,0.0001778,2]
[364970709,1749370238712,-184.9336475,0.00018131,2]
[364970710,1749370238721,-769.41894986,0.00018231,2]
[364970711,1749370238732,-207.4,0.00018231,2]
[364970712,1749370238742,-7637.05232277,0.00018231,2]
[364970713,1749370238753,-534.67,0.00018349,2]
[364970714,1749370238763,-5000.0,0.00018657,2]
[364970715,1749370238772,-857.34206,0.00018794,2]
[364970716,1749370238782,-169.10675377,0.00018805,2]
[364970717,1749370238792,-500.0,0.00018897,2]
[364970718,1749370238802,-184.40384692,0.00018897,2]
[364970719,1749370238812,-500.0,0.00018897,2]
[364970720,1749370238821,-500.0,0.00018897,2]
[364970721,1749370238831,-500.0,0.00018897,2]
[364970722,1749370238842,-500.0,0.00018897,2]
[364970723,1749370238852,-500.0,0.00018897,2]
[364970724,1749370238862,-500.0,0.00018897,2]
[364970725,1749370238871,-310.52037668,0.00018897,2]
[364970726,1749370238881,-500.0,0.00018897,2]
[364970727,1749370238892,-500.0,0.00018897,2]
[364970728,1749370238902,-249.0,0.000189,2]
[364970729,1749370238912,-1764.6391439,0.000189,2]
[364970730,1749370238922,-12152.73099221,0.00019077,2]
[364970731,1749370238933,-5000.0,0.00019166,2]
[364970732,1749370238943,-500.0,0.00019166,2]
[364970733,1749370238952,-500.0,0.00019166,2]
[364970734,1749370238962,-500.0,0.00019166,2]
[364970735,1749370238971,-500.0,0.00019166,2]
[364970736,1749370238981,-500.0,0.00019166,2]
[364970737,1749370238991,-500.0,0.00019166,2]
[364970738,1749370239000,-500.0,0.00019166,2]
[364970739,1749370239011,-500.0,0.00019166,2]
[364970740,1749370239021,-500.0,0.00019166,2]
[364970741,1749370239031,-500.0,0.00019166,2]
[364970742,1749370239041,-500.0,0.00019166,2]
[364970743,1749370239051,-500.0,0.00019166,2]
[364970744,1749370239060,-246.22735807,0.00019166,2]
[364970745,1749370239070,-16000.0,0.00019166,2]
[364970746,1749370239080,-500.0,0.00019173,2]
[364970747,1749370239089,-286.98783757,0.00019173,2]
[364970748,1749370239099,-500.0,0.00019173,2]
[364970749,1749370239108,-507.32655491,0.00019173,2]
[364970750,1749370239118,-500.0,0.00019173,2]
[364970751,1749370239127,-500.0,0.00019173,2]
[364970752,1749370239136,-500.74691284,0.00019173,2]
[364970753,1749370239146,-502.85616414,0.00019173,2]
[364970754,1749370239156,-200.0,0.00019176,2]
[364970755,1749370239165,-160.36334546,0.00019176,2]
[364970756,1749370239175,-700000.0,0.00019177,7]
[364970757,1749370239184,-200.0,0.00019177,2]
[364970758,1749370239194,-151.0,0.00019177,2]
[364970759,1749370239203,-793.492614,0.00019177,2]
[364970760,1749370239212,-793.492614,0.00019177,2]
[364970761,1749370239223,-151.0,0.00019177,2]
[364970762,1749370239244,-153.598468,0.00019177,2]
[364970763,1749370239256,-11853.97844947,0.00019177,7]
[364970764,1749370239266,-151.0,0.00019177,2]
[364970765,1749370239276,-152.808237,0.00019177,2]
[364970766,1749370239286,-151.0,0.00019177,2]
[364970767,1749370239296,-151.0,0.00019177,2]
[364970768,1749370239306,-206.40813592,0.00019178,2]
[364970769,1749370239316,-232.87481216,0.00019178,2]
[364970770,1749370239326,-432.36890792,0.00019178,2]
[364970771,1749370239336,-440.0,0.00019178,2]
[364970772,1749370239346,-440.0,0.00019178,2]
[364970773,1749370239356,-440.0,0.00019178,2]
[364970774,1749370239366,-567.83194408,0.00019178,2]
[364970775,1749370239376,-440.0,0.00019178,2]
[364970776,1749370239386,-440.0,0.00019178,2]
[364970777,1749370239396,-342.23289694,0.00019178,2]
[364970778,1749370239406,-440.0,0.00019178,2]
[364970779,1749370239417,-298.559307,0.00019178,2]
[364970780,1749370239426,-203.447584,0.00019178,2]
[364970781,1749370239436,-440.0,0.00019178,2]
[364970782,1749370239447,-430.00227675,0.00019178,2]
[364970783,1749370239463,-443.18138622,0.00019178,2]
[364970784,1749370239473,-440.0,0.00019178,2]
[364970785,1749370239483,-440.0,0.00019178,2]
[364970786,1749370239494,-440.0,0.00019178,2]
[364970787,1749370239504,-460.62282595,0.00019178,2]
[364970788,1749370239514,-500.0,0.00019178,2]
[364970789,1749370239524,-500.0,0.00019178,2]
[364970790,1749370239534,-500.0,0.00019178,2]
[364970791,1749370239544,-500.0,0.00019178,2]
[364970792,1749370239555,-500.0,0.00019178,2]
[364970793,1749370239565,-500.0,0.00019178,2]
[364970794,1749370239575,-151.0,0.00019178,2]
[364970795,1749370239585,-500.0,0.00019178,2]
[364970796,1749370239596,-151.0,0.00019178,2]
[364970797,1749370239609,-500.0,0.00019178,2]
[364970798,1749370239620,-211.269124,0.00019178,2]
[364970799,1749370239630,-440.0,0.00019178,2]
[364970800,1749370239640,-500.0,0.00019178,2]
[364970801,1749370239651,-441.65035572,0.00019178,2]
[364970802,1749370239661,-500.0,0.00019178,2]
[364970803,1749370239672,-500.0,0.00019178,2]
[364970804,1749370239682,-500.0,0.00019178,2]
[364970805,1749370239692,-500.0,0.00019178,2]
[364970806,1749370239702,-500.0,0.00019178,2]
[364970807,1749370239712,-500.0,0.00019178,2]
[364970808,1749370239722,-500.0,0.00019178,2]
[364970809,1749370239732,-500.0,0.00019178,2]
[364970810,1749370239743,-500.0,0.00019178,2]
[364970811,1749370239754,-397.88598872,0.00019178,2]
[364970812,1749370239764,-440.0,0.00019178,2]
[364970813,1749370239774,-151.0,0.00019178,2]
[364970814,1749370239784,-218.862275,0.00019178,2]
[364970815,1749370239794,-440.0,0.00019178,2]
[364970816,1749370239804,-442.07956596,0.00019178,2]
[364970817,1749370239814,-440.0,0.00019178,2]
[364970818,1749370239824,-440.0,0.00019178,2]
[364970819,1749370239834,-440.0,0.00019178,2]
[364970820,1749370239847,-187.44024775,0.00019178,2]
[364970821,1749370239862,-500.0,0.00019178,2]
[364970822,1749370239872,-165.93742883,0.00019178,2]
[364970823,1749370239882,-440.0,0.00019178,2]
[364970824,1749370239893,-440.0,0.00019178,2]
[364970825,1749370239903,-376.68821855,0.00019178,2]
[364970826,1749370239914,-151.0,0.00019178,2]
[364970827,1749370239925,-151.0,0.00019178,2]
[364970828,1749370239936,-440.0,0.00019178,2]
[364970829,1749370239946,-194.820138,0.00019178,2]
[364970830,1749370239957,-440.0,0.00019178,2]
[364970831,1749370239967,-440.0,0.00019178,2]
[364970832,1749370239976,-467.08467851,0.00019178,2]
[364970833,1749370239986,-440.0,0.00019178,2]
[364970834,1749370239996,-440.0,0.00019178,2]
[364970835,1749370240006,-440.0,0.00019178,2]
[364970836,1749370240017,-188.55791851,0.00019178,2]
[364970837,1749370240027,-440.0,0.00019178,2]
[364970838,1749370240037,-440.0,0.00019178,2]
[364970839,1749370240047,-430.0,0.00019178,2]
[364970840,1749370240058,-151.0,0.00019178,2]
[364970841,1749370240067,-258.676655,0.00019178,2]
[364970842,1749370240077,-440.0,0.00019178,2]
[364970843,1749370240087,-275.43614523,0.00019178,2]
[364970844,1749370240098,-440.0,0.00019178,2]
[364970845,1749370240108,-151.0,0.00019178,2]
[364970846,1749370240118,-477.04370349,0.00019178,2]
[364970847,1749370240128,-430.0,0.00019178,2]
[364970848,1749370240138,-265.11212657,0.00019178,2]
[364970849,1749370240149,-440.0,0.00019178,2]
[364970850,1749370240159,-440.0,0.00019178,2]
[364970851,1749370240169,-430.0,0.00019178,2]
[364970852,1749370240179,-440.0,0.00019178,2]
[364970853,1749370240189,-440.0,0.00019178,2]
[364970854,1749370240352,-440.0,0.00019178,2]
[364970855,1749370240364,-440.0,0.00019178,2]
[364970856,1749370240375,-152.75216,0.00019178,2]
[364970857,1749370240386,-430.0,0.00019178,2]
[364970858,1749370240396,-440.0,0.00019178,2]
[364970859,1749370240407,-440.0,0.00019178,2]
[364970860,1749370240417,-404.68798773,0.00019178,2]
[364970861,1749370240429,-440.0,0.00019178,2]
[364970862,1749370240439,-440.0,0.00019178,2]
[364970863,1749370240449,-275.70639393,0.00019178,2]
[364970864,1749370240459,-434.89748932,0.00019178,2]
[364970865,1749370240469,-430.0,0.00019178,2]
[364970866,1749370240479,-440.0,0.00019178,2]
[364970867,1749370240489,-440.0,0.00019178,2]
[364970868,1749370240500,-199.14533658,0.00019178,2]